bitfinex-derivatives/quotes_SOLF0:USTF0_20240911
["timestamp","ask_amount","ask_price","bid_price","bid_amount"]
[1726082967367,11.64,132.0,131.95,11.64]
[1726082967861,3.7878,131.98,131.95,15.4285]
[1726082971461,3.7877,131.99,131.96,3.7884]
[1726082972271,3.7877,131.99,131.96,15.4284]
[1726082972768,3.7877,131.99,131.96,3.7884]
[1726082973363,1.3789,132.01,131.95,11.64]
[1726082973566,3.7873,132.0,131.97,3.7879]
[1726082974573,3.7877,131.99,131.96,15.4284]
[1726082974771,3.7877,131.99,131.96,3.7884]
[1726082977862,3.7877,131.99,131.95,11.64]
[1726082978067,1.3789,132.01,131.97,11.64]
[1726082978068,3.7874,132.0,131.97,11.64]
[1726082978275,3.7874,132.0,131.97,15.428]
[1726082979961,3.7876,131.99,131.97,15.428]
[1726082981773,3.7876,131.99,131.96,15.4283]
[1726082981972,3.7876,131.99,131.96,11.64]
[1726082982174,3.7876,131.99,131.96,15.4282]
[1726082983575,3.7876,131.99,131.97,3.7881]
[1726082985771,3.788,131.98,131.96,3.7883]
[1726082986371,3.7874,132.0,131.97,3.7879]
[1726082986577,1.3789,132.01,131.97,3.7879]
[1726082986976,3.7877,131.99,131.97,3.7879]
[1726082987370,3.7877,131.99,131.96,15.4283]
[1726082988076,3.7879,131.98,131.96,11.64]
[1726082988295,11.64,131.98,131.92,1.3297]
[1726082988586,1.3789,132.01,131.92,12.9697]
[1726082988778,3.7886,131.96,131.93,3.7891]
[1726082991177,1.3789,132.01,131.94,3.789]
[1726082991384,11.64,132.0,131.94,11.64]
[1726082992877,3.788,131.98,131.95,3.7885]
[1726082993274,3.7878,131.98,131.96,3.7882]
[1726082994783,3.7878,131.98,131.95,3.7886]
[1726082996282,3.7878,131.98,131.94,11.64]
[1726082996482,3.7878,131.98,131.96,3.7884]
[1726082999289,3.7878,131.99,131.96,3.7884]
[1726082999584,11.64,132.0,131.96,3.7884]
[1726082999793,3.7876,131.99,131.96,3.7884]
[1726083000182,3.7876,131.99,131.97,3.788]
[1726083000380,11.64,132.0,131.92,1.3297]
[1726083000588,11.64,131.99,131.94,3.7888]
[1726083000785,11.64,132.0,131.93,11.64]
[1726083001084,3.788,131.98,131.95,11.64]
[1726083001278,3.788,131.98,131.96,3.7884]
[1726083001884,3.788,131.98,131.95,15.4285]
[1726083002088,3.7875,131.99,131.95,11.64]
[1726083002598,3.7874,132.0,131.97,11.64]
[1726083002895,1.3517,132.02,131.97,11.64]
[1726083003086,1.3517,132.02,131.99,15.4273]
[1726083003287,3.7869,132.02,131.99,15.4273]
[1726083003696,1.3829,132.06,131.99,11.64]
[1726083003993,3.7861,132.04,132.0,11.64]
[1726083004200,3.7861,132.05,132.01,15.4268]
[1726083004388,1.3829,132.06,132.01,15.4268]
[1726083004590,13.0229,132.06,132.01,11.64]
[1726083004797,13.0229,132.06,131.99,3.81697044]
[1726083004798,13.0229,132.06,132.0,11.64]
[1726083005690,3.7864,132.03,132.0,15.427]
[1726083009101,3.7864,132.03,132.01,3.787]
[1726083010992,13.0229,132.06,132.0,3.7872]
[1726083011297,13.0229,132.06,131.92,1.4506]
[1726083011298,11.64,132.02,131.96,11.64]
[1726083011694,3.7874,132.0,131.97,3.788]
[1726083012694,3.7874,132.0,131.98,3.7878]
[1726083013400,11.64,132.05,131.99,11.64]
[1726083013794,3.7866,132.03,131.99,11.64]
[1726083014001,3.7866,132.03,132.0,11.64]
[1726083014296,3.7871,132.01,131.98,5.2165]
[1726083014497,11.64,132.04,131.98,11.64]
[1726083014702,11.64,132.05,131.99,11.64]
[1726083015298,3.7862,132.04,132.0,3.787]
[1726083015497,3.7862,132.04,131.99,15.45628204]
[1726083015897,3.7862,132.04,132.01,3.7869]
[1726083016101,15.4259,132.05,131.99,15.45628204]
[1726083016302,1.3262,132.07,132.03,3.7862]
[1726083016892,1.3262,132.07,132.04,3.7861]
[1726083016893,5.1116,132.07,132.04,3.7861]
[1726083017106,3.7854,132.07,132.04,3.7861]
[1726083017404,11.64,132.09,132.04,3.7861]
[1726083017601,3.7853,132.07,132.04,3.7861]
[1726083017998,11.64,132.09,132.03,15.4263]
[1726083018805,11.64,132.09,132.03,11.64]
[1726083019106,11.64,132.08,132.03,11.64]
[1726083019402,3.7857,132.06,132.03,11.64]
[1726083019905,3.7853,132.07,132.04,3.7861]
[1726083021496,3.785,132.08,132.04,3.7861]
[1726083021997,3.7852,132.08,132.04,3.7861]
[1726083022700,14.4122,132.1,132.03,11.64]
[1726083023102,3.7852,132.08,132.05,3.7857]
[1726083023405,14.4122,132.1,132.03,11.64]
[1726083023802,3.7852,132.08,132.03,11.64]
[1726083024010,2.7722,132.1,132.04,11.64]
[1726083024205,11.64,132.12,132.06,11.64]
[1726083024403,3.7846,132.1,132.07,15.4251]
[1726083025407,3.7842,132.11,132.08,3.785]
[1726083026304,3.7839,132.12,132.08,3.785]
[1726083027403,11.64,132.13,132.07,15.4252]
[1726083027607,11.64,132.13,132.07,11.64]
[1726083028708,3.784,132.12,132.09,3.7846]
[1726083029609,3.784,132.12,132.09,15.4246]
[1726083029914,3.7837,132.13,132.1,3.7843]
[1726083030900,6.5898,132.14,132.11,3.7841]
[1726083031105,3.7834,132.14,132.11,3.7841]
[1726083031513,3.7835,132.13,132.11,3.7841]
[1726083031714,3.7835,132.13,132.1,15.4243]
[1726083033509,3.7835,132.14,132.11,3.7841]
[1726083033711,3.7835,132.14,132.11,11.64]
[1726083034406,3.7835,132.14,132.11,15.424]
[1726083034804,11.64,132.15,132.07,1.4459]
[1726083035010,11.64,132.12,132.06,13.0764]
[1726083035208,1.4517,132.14,132.05,11.64]
[1726083035209,3.7853,132.07,132.05,11.64]
[1726083035406,11.64,132.1,132.05,15.4257]
[1726083035710,11.64,132.09,132.03,11.64]
[1726083035913,3.7855,132.07,132.04,3.7859]
[1726083037020,3.7852,132.08,132.05,3.7858]
[1726083037610,3.7854,132.07,132.04,3.7861]
[1726083038320,3.7856,132.06,132.03,15.4263]
[1726083038623,11.64,132.08,132.01,183.72042573]
[1726083038813,3.7857,132.06,132.03,3.7864]
[1726083039719,11.64,132.1,132.04,11.64]
[1726083039918,11.64,132.09,132.04,11.64]
[1726083040620,3.7853,132.07,132.04,15.426]
[1726083041018,11.64,132.09,132.03,11.64]
[1726083041221,11.64,132.09,132.03,15.4262]
[1726083041822,3.7855,132.06,132.03,15.4262]
[1726083042023,11.64,132.09,132.04,3.7861]
[1726083042621,3.7854,132.07,132.04,3.7861]
[1726083042825,11.64,132.08,132.03,15.4263]
[1726083043538,3.7856,132.06,132.03,15.4263]
[1726083044018,3.7853,132.07,132.04,3.786]
[1726083044225,11.64,132.08,132.03,11.64]
[1726083045020,3.7855,132.07,132.03,15.4262]
[1726083045421,3.7855,132.07,132.04,3.7859]
[1726083046715,3.7855,132.06,132.04,3.7859]
[1726083047429,3.7854,132.07,132.04,3.7859]
[1726083048829,3.7851,132.08,132.05,3.7858]
[1726083049024,11.64,132.11,132.04,11.64]
[1726083049420,3.7849,132.09,132.06,3.7854]
[1726083050923,3.7845,132.1,132.07,3.7852]
[1726083051324,11.64,132.12,132.05,11.64]
[1726083051523,3.7844,132.11,132.07,3.7851]
[1726083051824,11.64,132.12,132.07,3.7851]
[1726083052130,3.7843,132.11,132.07,3.7851]
[1726083052432,11.64,132.12,132.07,3.7851]
[1726083053231,3.7846,132.1,132.06,3.7854]
[1726083054732,11.64,132.11,132.05,3.7857]
[1726083055821,3.7852,132.08,132.05,3.7857]
[1726083056232,11.64,132.11,132.04,11.64]
[1726083056436,11.64,132.08,132.03,1.3872]
[1726083056935,3.7855,132.07,132.03,5.1734]
[1726083057832,3.7855,132.06,132.03,5.1734]
[1726083058032,11.64,132.08,132.03,5.1734]
[1726083059126,3.7857,132.06,132.03,5.1734]
[1726083060031,3.7857,132.06,132.04,3.7861]
[1726083060538,3.7854,132.07,132.04,3.7861]
[1726083061235,3.7856,132.06,132.03,5.1735]
[1726083061441,11.64,132.08,132.01,186.24394833]
[1726083061632,3.786,132.05,132.02,3.7864]
[1726083062350,3.7857,132.06,132.03,3.7863]
[1726083062742,11.64,132.09,132.03,11.64]
[1726083063043,3.7854,132.07,132.04,3.786]
[1726083063647,3.7855,132.06,132.04,3.786]
[1726083064242,3.7854,132.07,132.04,3.786]
[1726083064547,11.64,132.09,132.04,3.786]
[1726083065551,11.64,132.05,131.96,13.0123]
[1726083065746,11.64,132.02,131.96,13.0123]
[1726083065946,1.4224,132.04,131.97,11.64]
[1726083066251,11.64,132.05,132.0,11.64]
[1726083066447,3.7863,132.04,132.01,3.7868]
[1726083066652,3.7863,132.04,132.0,15.33672358]
[1726083066653,11.64,132.06,132.0,15.33672358]
[1726083067151,3.786,132.05,132.02,3.7866]
[1726083067449,11.64,132.06,132.02,3.7866]
[1726083067953,11.64,132.06,132.0,11.64]
[1726083068139,11.64,132.12,132.01,4.1147]
[1726083068347,11.64,132.11,132.04,11.64]
[1726083068549,11.64,132.09,132.03,15.4262]
[1726083068748,3.7858,132.06,132.03,11.64]
[1726083069144,11.64,132.08,132.03,15.4262]
[1726083069449,3.7854,132.07,132.03,15.4262]
[1726083069850,3.7854,132.07,132.04,3.7861]
[1726083070442,3.7854,132.07,132.03,15.4263]
[1726083072046,3.7854,132.07,132.04,3.7861]
[1726083073053,3.7854,132.07,132.03,11.64]
[1726083073648,3.7854,132.07,132.04,3.7861]
[1726083075050,11.64,132.09,132.04,11.64]
[1726083075642,3.7851,132.08,132.04,11.64]
[1726083075849,3.7851,132.08,132.05,3.7856]
[1726083077253,3.7851,132.08,132.06,3.7855]
[1726083078148,3.7851,132.08,132.05,3.7857]
[1726083078762,3.7848,132.09,132.06,3.7855]
[1726083078953,11.64,132.12,132.06,11.64]
[1726083079150,11.64,132.12,132.07,3.82278697]
[1726083079360,3.7846,132.1,132.07,19.24778697]
[1726083079561,3.7846,132.1,132.07,15.425]
[1726083079961,3.7847,132.09,132.07,11.64]
[1726083080161,3.7847,132.09,132.06,3.7854]
[1726083080362,2.792,132.13,132.05,11.64]
[1726083080559,3.7846,132.1,132.05,11.64]
[1726083081256,3.7846,132.1,132.07,3.7852]
[1726083081461,3.7842,132.11,132.07,11.64]
[1726083082259,3.7842,132.11,132.08,3.7847]
[1726083082465,3.784,132.12,132.07,15.51596581]
[1726083084462,3.784,132.12,132.09,3.7847]
[1726083084662,3.7843,132.11,132.07,15.51596581]
[1726083085259,3.7843,132.11,132.08,3.7848]
[1726083085453,2.792,132.13,132.08,11.64]
[1726083085656,29.10927785,132.17,132.11,11.64]
[1726083085862,11.64,132.17,132.11,11.64]
[1726083086459,11.64,132.17,132.11,15.4239]
[1726083086665,2.8808,132.18,132.12,11.64]
[1726083086871,3.7826,132.17,132.13,3.7835]
[1726083087166,2.8808,132.18,132.12,11.64]
[1726083087665,14.5208,132.18,132.11,11.64]
[1726083088058,3.7829,132.16,132.13,11.64]
[1726083088566,11.64,132.17,132.11,11.64]
[1726083088864,3.783,132.15,132.11,15.4239]
[1726083089068,2.8808,132.18,132.11,11.64]
[1726083089256,14.5208,132.18,132.11,11.64]
[1726083089564,11.64,132.18,132.11,11.64]
[1726083090064,11.64,132.18,132.12,11.64]
[1726083090763,3.7825,132.17,132.13,3.7834]
[1726083091666,3.7822,132.18,132.14,15.4232]
[1726083091853,3.7822,132.18,132.14,15.43474532]
[1726083092266,3.7819,132.19,132.15,3.7829]
[1726083093559,3.7819,132.19,132.15,15.4229]
[1726083093760,3.7819,132.19,132.15,3.7829]
[1726083094058,3.7819,132.19,132.15,15.4229]
[1726083094464,11.64,132.21,132.15,15.4229]
[1726083094465,3.7821,132.18,132.15,15.4229]
[1726083095258,11.64,132.21,132.15,15.4229]
[1726083095259,3.7819,132.19,132.15,15.4229]
[1726083095666,11.64,132.21,132.15,11.64]
[1726083095867,3.7823,132.18,132.15,11.64]
[1726083096067,3.7823,132.18,132.14,19.21794532]
[1726083096267,4.0798,132.26,132.17,11.64]
[1726083096458,11.64,132.23,132.18,11.64]
[1726083096860,11.64,132.25,132.18,15.422]
[1726083097973,11.64,132.25,132.18,11.64]
[1726083098165,11.64,132.23,132.18,11.64]
[1726083098360,3.7814,132.21,132.18,11.64]
[1726083098666,11.64,132.23,132.18,11.64]
[1726083099063,3.7817,132.2,132.18,11.64]
[1726083100073,3.7814,132.21,132.18,11.64]
[1726083102570,11.64,132.25,132.19,11.64]
[1726083103271,3.7812,132.22,132.19,11.64]
[1726083103473,11.64,132.23,132.18,11.64]
[1726083104374,3.782,132.19,132.16,15.4226]
[1726083104874,11.64,132.22,132.16,11.64]
[1726083105575,3.7821,132.19,132.16,11.64]
[1726083105773,11.64,132.22,132.16,11.64]
[1726083106083,11.64,132.22,132.15,15.4228]
[1726083106777,11.64,132.19,132.14,15.4232]
[1726083107174,3.7823,132.18,132.14,11.64]
[1726083107381,3.7823,132.18,132.15,15.4228]
[1726083110272,3.7819,132.19,132.16,3.7826]
[1726083111085,3.7816,132.2,132.16,11.64]
[1726083111572,3.7816,132.2,132.17,3.7821]
[1726083114676,1.355,132.21,132.15,11.64]
[1726083114874,11.64,132.2,132.15,11.64]
[1726083115482,11.64,132.2,132.14,11.64]
[1726083115777,3.7827,132.17,132.14,15.4231]
[1726083116573,3.7828,132.16,132.13,3.7835]
[1726083116767,3.7828,132.16,132.13,15.4235]
[1726083117577,3.783,132.15,132.12,3.7836]
[1726083117782,3.783,132.15,132.12,11.64]
[1726083118178,3.7828,132.16,132.13,3.7835]
[1726083119174,3.7828,132.16,132.11,1.4193]
[1726083119175,3.782,132.19,132.16,3.7825]
[1726083120587,3.7817,132.2,132.14,21.86630407]
[1726083121278,3.7817,132.2,132.17,3.7823]
[1726083122178,1.3087,132.23,132.15,18.16]
[1726083123480,3.7813,132.21,132.18,3.7819]
[1726083125380,3.7811,132.22,132.15,18.16]
[1726083125580,3.7811,132.22,132.19,3.7818]
[1726083125784,1.3087,132.23,132.15,18.16]
[1726083125980,3.7816,132.2,132.17,3.7823]
[1726083126185,1.3087,132.23,132.14,21.96258376]
[1726083127282,3.7817,132.2,132.17,3.7823]
[1726083127488,1.3087,132.23,132.15,18.16]
[1726083127683,1.3087,132.23,132.15,19.6046]
[1726083127884,2.7388,132.24,132.17,18.16]
[1726083128783,3.781,132.22,132.19,3.7816]
[1726083129181,2.7388,132.24,132.17,18.16]
[1726083129379,3.7808,132.23,132.19,3.7816]
[1726083130791,3.7808,132.23,132.2,3.7815]
[1726083132388,3.7808,132.23,132.19,3.7816]
[1726083133287,6.5194,132.24,132.17,18.16]
[1726083133785,3.7806,132.24,132.2,3.7813]
[1726083134189,3.7806,132.24,132.19,18.16]
[1726083135196,3.7806,132.24,132.2,3.7814]
[1726083135391,1.3849,132.26,132.19,18.16]
[1726083135891,1.3849,132.26,132.17,18.16]
[1726083136696,3.7805,132.24,132.21,3.7812]
[1726083136890,1.3849,132.26,132.17,18.16]
[1726083137593,3.7808,132.23,132.17,18.16]
[1726083137895,1.3849,132.26,132.17,18.16]
[1726083138091,18.16,132.24,132.16,1.3387]
[1726083138291,2.7344,132.23,132.14,23.40908376]
[1726083138700,3.7818,132.2,132.16,3.7827]
[1726083138899,2.7344,132.23,132.14,18.16]
[1726083139109,18.16,132.22,132.12,18.16]
[1726083139395,18.16,132.2,132.11,1.3712]
[1726083139605,3.77467733,132.19,132.11,1.3712]
[1726083139798,1.3964,132.21,132.08,1.3154]
[1726083140096,1.3964,132.21,132.14,18.16]
[1726083140288,1.3964,132.21,132.11,1.3609]
[1726083140489,11.62,132.2,132.14,11.62]
[1726083140892,3.7824,132.17,132.13,11.62]
[1726083141202,11.62,132.17,132.09,1.416]
[1726083141404,3.7836,132.13,132.09,13.036]
[1726083141701,11.62,132.13,132.04,1.4412]
[1726083141904,2.7308,132.16,132.04,1.4412]
[1726083141905,3.7846,132.1,132.06,11.62]
[1726083142598,3.7846,132.1,132.05,3.7856]
[1726083142795,3.7846,132.1,132.05,15.4056]
[1726083143597,11.62,132.09,132.04,11.62]
[1726083143798,11.62,132.08,132.02,182.37873504]
[1726083143998,3.7854,132.07,132.02,182.37873504]
[1726083144199,1.3163,132.09,132.04,11.62]
[1726083144403,1.3163,132.09,132.02,170.75873504]
[1726083145695,3.785,132.08,132.03,3.7862]
[1726083145899,3.785,132.08,132.02,170.75873504]
[1726083146595,5.1011,132.09,132.04,3.7859]
[1726083146794,5.1011,132.09,132.02,170.75873504]
[1726083146994,1.3163,132.09,132.02,170.75873504]
[1726083147193,1.3559,132.1,132.03,18.17]
[1726083147398,1.3895,132.13,132.03,18.17]
[1726083147902,3.784,132.12,132.07,3.785]
[1726083148492,3.7841,132.11,132.07,3.785]
[1726083149997,3.7839,132.12,132.03,18.17]
[1726083150593,1.3895,132.13,132.05,18.17]
[1726083150789,1.3895,132.13,132.06,3.81359206]
[1726083151199,1.3895,132.13,132.11,3.784]
[1726083151400,1.3883,132.14,132.07,18.17]
[1726083151797,1.3883,132.14,132.11,3.784]
[1726083152004,1.3883,132.14,132.07,22.0244682]
[1726083152600,1.3883,132.14,132.07,18.17]
[1726083153101,1.3874,132.16,132.07,18.17]
[1726083153596,3.7833,132.14,132.1,3.7842]
[1726083154006,1.4485,132.17,132.1,18.17]
[1726083154195,1.4485,132.17,132.14,3.7831]
[1726083154401,1.4485,132.17,132.12,18.17]
[1726083154402,2.7411,132.2,132.12,18.17]
[1726083154995,3.7818,132.19,132.15,3.7828]
[1726083155197,2.7411,132.2,132.12,18.17]
[1726083155404,2.7411,132.2,132.14,18.17]
[1726083156610,2.7411,132.2,132.16,3.7825]
[1726083157002,6.5228,132.2,132.15,3.7829]
[1726083157606,3.7818,132.19,132.15,3.7829]
[1726083159601,6.5227,132.2,132.16,3.7827]
[1726083160107,3.7818,132.19,132.16,3.7827]
[1726083160506,3.7818,132.19,132.15,3.7829]
[1726083160706,3.7823,132.18,132.12,18.17]
[1726083160898,1.3431,132.2,132.12,18.17]
[1726083161107,1.3431,132.2,132.15,3.7827]
[1726083161507,3.7819,132.19,132.15,3.7827]
[1726083163201,1.3431,132.2,132.13,3.83653863]
[1726083163912,3.782,132.19,132.15,3.7828]
[1726083164505,3.7821,132.18,132.15,3.7828]
[1726083164905,1.3431,132.2,132.14,3.7831]
[1726083165213,1.3431,132.2,132.12,18.17]
[1726083165515,19.5131,132.2,132.13,3.7835]
[1726083166008,18.17,132.17,132.08,4.0869]
[1726083166713,3.7835,132.14,132.08,4.0869]
[1726083167211,3.7831,132.15,132.08,4.0869]
[1726083167520,18.17,132.17,132.08,4.0869]
[1726083167812,3.7836,132.13,132.08,4.0869]
[1726083168411,3.7836,132.13,132.09,3.7846]
[1726083171217,3.7836,132.13,132.08,4.0869]
[1726083171218,3.7836,132.13,132.1,3.7844]
[1726083175620,3.7842,132.11,132.08,1.3703]
[1726083175821,3.7842,132.11,132.06,18.17]
[1726083176310,3.7846,132.1,132.06,18.17]
[1726083176509,6.60197063,132.14,132.06,18.17]
[1726083176710,24.77197063,132.14,132.05,3.7856]
[1726083176918,24.77197063,132.14,132.03,22.2646]
[1726083177921,3.785,132.08,132.03,20.861]
[1726083178515,3.7848,132.09,132.05,3.7856]
[1726083178711,18.17,132.12,132.05,3.7856]
[1726083178917,18.17,132.12,132.04,3.7859]
[1726083180220,3.7853,132.07,132.04,3.7859]
[1726083182422,18.17,132.09,132.0,20.9105]
[1726083182623,1.416,132.08,132.0,20.9105]
[1726083183332,3.7858,132.05,132.02,174.54523504]
[1726083183921,3.7858,132.05,132.02,3.7865]
[1726083184124,3.7857,132.06,132.02,3.7865]
[1726083184723,3.7858,132.05,132.02,3.7865]
[1726083185324,3.7863,132.04,132.01,3.7868]
[1726083185531,18.17,132.07,131.98,1.4346]
[1726083185725,18.17,132.05,131.97,18.17]
[1726083185930,18.17,132.05,131.95,3.69538139]
[1726083186517,18.17,132.02,131.94,2.8051]
[1726083187630,3.7876,131.99,131.95,3.7886]
[1726083188225,3.7879,131.98,131.94,5.21]
[1726083188425,3.7879,131.98,131.94,1.4212]
[1726083188631,18.17,132.02,131.94,1.4212]
[1726083189032,18.17,132.02,131.95,3.7887]
[1726083189628,18.17,132.02,131.94,1.4212]
[1726083189629,18.17,132.0,131.93,1.32]
[1726083190029,3.7876,131.99,131.95,3.7887]
[1726083191026,3.7883,131.97,131.93,5.1091]
[1726083191228,23.45561772,132.0,131.9,3.80124005]
[1726083191423,23.45561772,132.0,131.9,1.4055]
[1726083191731,23.45561772,132.0,131.91,3.77055739]
[1726083191930,3.7883,131.97,131.93,3.7893]
[1726083192627,23.45561772,132.0,131.94,3.7887]
[1726083192833,2.8251,132.01,131.92,18.17]
[1726083193525,2.8251,132.01,131.93,3.85135932]
[1726083194036,3.7876,131.99,131.95,3.7886]
[1726083194229,2.8251,132.01,131.95,3.7886]
[1726083194534,2.8251,132.01,131.93,3.85135932]
[1726083194736,3.7873,132.0,131.96,3.7883]
[1726083196536,18.17,132.02,131.94,18.17]
[1726083196734,18.17,132.04,131.94,19.5761]
[1726083197232,18.17,132.04,131.95,3.71135965]
[1726083197434,18.17,132.04,131.94,19.5761]
[1726083197636,18.17,132.04,131.95,1.3428]
[1726083197836,3.7866,132.03,131.99,3.7875]
[1726083198232,21.9563,132.04,131.96,19.5459]
[1726083198534,18.17,132.04,131.96,19.5459]
[1726083198942,3.7869,132.02,131.96,19.5459]
[1726083199330,3.7869,132.02,131.98,3.7878]
[1726083200038,3.7869,132.02,131.99,3.7875]
[1726083200743,3.7869,132.02,131.98,3.7877]
[1726083201447,3.787,132.01,131.97,3.788]
[1726083201740,18.17,132.03,131.97,3.788]
[1726083201939,3.7873,132.0,131.96,5.1642]
[1726083202848,3.7871,132.01,131.96,1.3759]
[1726083203146,18.17,132.03,131.96,1.3759]
[1726083203546,3.7874,132.0,131.96,5.1641]
[1726083203742,18.17,132.03,131.94,23.38634336]
[1726083203940,18.17,132.03,131.95,3.7885]
[1726083204344,18.17,132.03,131.92,18.17]
[1726083204943,18.17,132.03,131.93,5.2429419]
[1726083205151,3.7873,132.0,131.96,3.7883]
[1726083205644,18.17,132.04,131.94,18.17]
[1726083205845,3.787,132.01,131.97,3.7881]
[1726083206042,18.17,132.04,131.94,18.17]
[1726083206240,18.17,132.04,131.94,19.5665]
[1726083206439,18.17,132.04,131.95,18.17]
[1726083206841,3.7865,132.03,131.99,3.7875]
[1726083207036,18.17,132.04,131.95,18.17]
[1726083207435,3.7868,132.02,131.98,3.7878]
[1726083208045,3.787,132.01,131.98,3.7878]
[1726083208442,18.17,132.04,131.98,3.7878]
[1726083208945,1.3105,132.05,131.99,3.7874]
[1726083208946,19.4805,132.05,131.99,3.7874]
[1726083209248,19.4805,132.05,131.95,18.17]
[1726083209448,18.17,132.04,131.98,3.7878]
[1726083209949,3.7869,132.02,131.98,3.7878]
[1726083210151,18.17,132.04,131.94,19.5665]
[1726083210445,11.64,132.03,131.96,11.64]
[1726083210647,11.64,132.03,131.97,3.7879]
[1726083210846,2.7775,132.06,132.0,11.64]
[1726083211046,2.7775,132.06,132.02,3.7867]
[1726083211549,15.4255,132.07,132.03,3.7862]
[1726083211941,3.7848,132.09,132.03,11.64]
[1726083212250,2.6522,132.1,132.05,3.7856]
[1726083212650,3.7849,132.09,132.05,3.7856]
[1726083212949,2.6522,132.1,132.04,3.786]
[1726083213738,3.785,132.08,132.04,3.786]
[1726083215039,2.6522,132.1,132.04,3.786]
[1726083215040,3.7853,132.07,132.04,3.786]
[1726083215644,3.7853,132.07,132.03,3.7863]
[1726083216049,2.6522,132.1,132.01,23.26524589]
[1726083216454,2.6522,132.1,132.04,3.786]
[1726083216750,3.7852,132.08,132.04,3.786]
[1726083217149,3.7844,132.1,132.06,3.7853]
[1726083218153,22.352,132.13,132.04,18.16]
[1726083218557,3.7839,132.12,132.08,3.7848]
[1726083218854,4.192,132.13,132.04,18.16]
[1726083219054,4.192,132.13,132.1,3.7842]
[1726083219254,2.8075,132.13,132.06,18.16]
[1726083219651,3.7839,132.12,132.06,18.16]
[1726083220356,3.7839,132.12,132.08,3.7847]
[1726083220556,3.7839,132.12,132.06,18.16]
[1726083220757,6.5911,132.13,132.09,3.7845]
[1726083220946,2.8075,132.13,132.06,18.16]
[1726083221148,3.784,132.12,132.06,18.16]
[1726083221654,3.784,132.12,132.08,3.7847]
[1726083221856,3.7842,132.11,132.08,3.7847]
[1726083222055,2.8075,132.13,132.04,18.16]
[1726083222254,2.8075,132.13,132.08,3.7849]
[1726083222651,3.7843,132.11,132.08,3.7849]
[1726083222859,3.7843,132.11,132.07,3.7852]
[1726083223256,3.7843,132.11,132.04,18.16]
[1726083224756,3.7843,132.11,132.08,3.7849]
[1726083227865,3.7838,132.12,132.09,3.7846]
[1726083230864,2.8075,132.13,132.07,3.7851]
[1726083231564,3.7843,132.11,132.08,3.7849]
[1726083235474,14.4275,132.13,132.09,3.7845]
[1726083235868,2.8075,132.13,132.09,3.7845]
[1726083236063,14.4275,132.13,132.09,3.7845]
[1726083236975,3.7839,132.12,132.09,3.7845]
[1726083239571,14.4275,132.13,132.09,3.7845]
[1726083239778,14.4275,132.13,132.1,3.7842]
[1726083239779,6.5912,132.13,132.1,3.7842]
[1726083239974,2.8075,132.13,132.07,11.62]
[1726083240173,6.5912,132.13,132.07,11.62]